[Event "*** Titled Tuesday Blitz"]
[Site "Chess.com"]
[Date "2020.12.29"]
[Round "5"]
[White "sotochess"]
[Black "XDPS"]
[Result "0-1"]
[WhiteElo "2528"]
[BlackElo "2723"]
[TimeControl "180+1"]
[EndTime "10:55:11 PST"]
[Termination "XDPS won by resignation"]

1. e4 {[%clk 0:03:00]} 1... c5 {[%clk 0:01:20.5]} 2. Nf3 {[%clk 0:02:58.5]} 2...
e6 {[%clk 0:01:20.9]} 3. g3 {[%clk 0:02:57.3]} 3... Nc6 {[%clk 0:01:19.8]} 4.
Bg2 {[%clk 0:02:57.3]} 4... Nf6 {[%clk 0:01:20.4]} 5. Qe2 {[%clk 0:02:57.2]}
5... e5 {[%clk 0:01:20.5]} 6. O-O {[%clk 0:02:55.8]} 6... Be7 {[%clk 0:01:21]}
7. Rd1 {[%clk 0:02:55.1]} 7... O-O {[%clk 0:01:20.2]} 8. c3 {[%clk 0:02:55.2]}
8... d5 {[%clk 0:01:20.4]} 9. d3 {[%clk 0:02:55.3]} 9... h6 {[%clk 0:01:13.9]}
10. h3 {[%clk 0:02:55.1]} 10... Re8 {[%clk 0:01:02.9]} 11. Nbd2 {[%clk
0:02:53.7]} 11... Bf8 {[%clk 0:01:02.7]} 12. Nf1 {[%clk 0:02:52.7]} 12... Be6
{[%clk 0:00:58.1]} 13. Nh4 {[%clk 0:02:52.2]} 13... Qc7 {[%clk 0:00:57.4]} 14.
Ne3 {[%clk 0:02:51.2]} 14... Rad8 {[%clk 0:00:56.3]} 15. Nhf5 {[%clk 0:02:34.7]}
15... d4 {[%clk 0:00:51.4]} 16. Ng4 {[%clk 0:02:32.7]} 16... Nxg4 {[%clk
0:00:43.5]} 17. Qxg4 {[%clk 0:02:28.2]} 17... Kh7 {[%clk 0:00:43.3]} 18. Qf3
{[%clk 0:02:22.5]} 18... g6 {[%clk 0:00:40.2]} 19. Nh4 {[%clk 0:02:20.2]} 19...
b5 {[%clk 0:00:39.3]} 20. Bf1 {[%clk 0:02:06.8]} 20... c4 {[%clk 0:00:37.9]} 21.
a4 {[%clk 0:01:56.3]} 21... a6 {[%clk 0:00:37.9]} 22. axb5 {[%clk 0:01:56.1]}
22... axb5 {[%clk 0:00:38.8]} 23. Qg2 {[%clk 0:01:42.7]} 23... b4 {[%clk
0:00:29.5]} 24. cxd4 {[%clk 0:01:37.7]} 24... Nxd4 {[%clk 0:00:27.6]} 25. Be3
{[%clk 0:01:18.1]} 25... c3 {[%clk 0:00:20.8]} 26. bxc3 {[%clk 0:01:17.6]} 26...
bxc3 {[%clk 0:00:21.7]} 27. Bxd4 {[%clk 0:01:15.9]} 27... exd4 {[%clk
0:00:21.5]} 28. f4 {[%clk 0:01:15.3]} 28... Bb3 {[%clk 0:00:16.7]} 29. Rdc1
{[%clk 0:01:12.9]} 29... Rb8 {[%clk 0:00:17.2]} 30. Be2 {[%clk 0:01:10.7]} 30...
Ra8 {[%clk 0:00:15.9]} 31. Rab1 {[%clk 0:01:10.1]} 31... Reb8 {[%clk 0:00:14.8]}
32. Bf3 {[%clk 0:01:07]} 32... Ra2 {[%clk 0:00:15]} 33. Qf1 {[%clk 0:01:05]}
33... Be7 {[%clk 0:00:11.5]} 34. e5 {[%clk 0:01:03]} 34... Qd8 {[%clk
0:00:09.1]} 35. Ng2 {[%clk 0:01:02.7]} 35... Be6 {[%clk 0:00:09.2]} 36. g4
{[%clk 0:01:01.8]} 36... Rxb1 {[%clk 0:00:08.8]} 37. Rxb1 {[%clk 0:01:01.7]}
37... c2 {[%clk 0:00:09.4]} 38. Rc1 {[%clk 0:01:01.8]} 38... Ba3 {[%clk
0:00:10]} 39. Be4 {[%clk 0:01:00.3]} 39... Bxc1 {[%clk 0:00:09.5]} 40. Qxc1
{[%clk 0:01:00.3]} 40... Qa5 {[%clk 0:00:09.5]} 41. Kf2 {[%clk 0:00:59.2]} 41...
Qc3 {[%clk 0:00:09.7]} 42. Ne1 {[%clk 0:00:58.4]} 42... Rb2 {[%clk 0:00:07.5]}
43. f5 {[%clk 0:00:57.2]} 43... Rb1 {[%clk 0:00:07.7]} 44. Qxc2 {[%clk
0:00:56.6]} 44... Rb2 {[%clk 0:00:08.1]} 45. Qxb2 {[%clk 0:00:54.3]} 45... Qxb2+
{[%clk 0:00:09]} 46. Kf3 {[%clk 0:00:54.9]} 46... Bb3 {[%clk 0:00:08.5]} 47. e6
{[%clk 0:00:52.7]} 47... fxe6 {[%clk 0:00:08.7]} 48. fxg6+ {[%clk 0:00:51.5]}
48... Kg7 {[%clk 0:00:09]} 49. Ng2 {[%clk 0:00:52]} 49... Bd1+ {[%clk
0:00:09.1]} 50. Kg3 {[%clk 0:00:52.3]} 50... Qd2 {[%clk 0:00:09.4]} 51. h4
{[%clk 0:00:51.9]} 51... Be2 {[%clk 0:00:08.5]} 52. h5 {[%clk 0:00:51.6]} 52...
Bxd3 {[%clk 0:00:08.7]} 53. Bf3 {[%clk 0:00:51.3]} 53... e5 {[%clk 0:00:08.2]}
54. Nh4 {[%clk 0:00:51.5]} 54... Qf4+ {[%clk 0:00:08.2]} 55. Kg2 {[%clk
0:00:51.3]} 55... Qg5 {[%clk 0:00:07.8]} 56. Kg3 {[%clk 0:00:50.8]} 56... Qc1
{[%clk 0:00:07.6]} 57. Ng2 {[%clk 0:00:50.5]} 57... e4 {[%clk 0:00:07.1]} 58. g5
{[%clk 0:00:50.1]} 58... Qxg5+ {[%clk 0:00:06.6]} 59. Bg4 {[%clk 0:00:49.8]}
59... Be2 {[%clk 0:00:07]} 0-1

[Event "*** Titled Tuesday Blitz"]
[Site "Chess.com"]
[Date "2020.12.29"]
[Round "5"]
[White "MFBerna"]
[Black "Olga_Zhuravleva"]
[Result "0-1"]
[WhiteElo "2450"]
[BlackElo "2324"]
[TimeControl "180+1"]
[EndTime "10:55:11 PST"]
[Termination "Olga_Zhuravleva won on time"]

1. e4 {[%clk 0:03:00.9]} 1... e5 {[%clk 0:02:57.5]} 2. Nf3 {[%clk 0:03:00.2]}
2... Nc6 {[%clk 0:02:57.3]} 3. Bc4 {[%clk 0:02:56]} 3... Nf6 {[%clk 0:02:56.7]}
4. d3 {[%clk 0:02:56.2]} 4... d5 {[%clk 0:02:56.1]} 5. exd5 {[%clk 0:02:56]}
5... Nxd5 {[%clk 0:02:57]} 6. O-O {[%clk 0:02:55]} 6... Bc5 {[%clk 0:02:56]} 7.
Re1 {[%clk 0:02:54.6]} 7... O-O {[%clk 0:02:54.8]} 8. h3 {[%clk 0:02:51.5]} 8...
Nb6 {[%clk 0:02:47.4]} 9. Bb5 {[%clk 0:02:50]} 9... f6 {[%clk 0:02:42]} 10. c3
{[%clk 0:02:50.1]} 10... Bf5 {[%clk 0:02:29.3]} 11. Be3 {[%clk 0:02:41.1]} 11...
Bd6 {[%clk 0:02:25.3]} 12. d4 {[%clk 0:02:28.1]} 12... e4 {[%clk 0:02:16]} 13.
Nh2 {[%clk 0:02:07.8]} 13... Ne7 {[%clk 0:02:07.8]} 14. Nd2 {[%clk 0:02:01.3]}
14... c6 {[%clk 0:02:06.2]} 15. Be2 {[%clk 0:01:59.5]} 15... Bc7 {[%clk
0:02:05.6]} 16. Bg4 {[%clk 0:01:53]} 16... Bg6 {[%clk 0:01:53.2]} 17. Bh5 {[%clk
0:01:31.8]} 17... f5 {[%clk 0:01:32.7]} 18. Bg5 {[%clk 0:01:31]} 18... Qd6
{[%clk 0:01:29.2]} 19. g3 {[%clk 0:01:26]} 19... Nbd5 {[%clk 0:01:10.8]} 20. Nc4
{[%clk 0:01:12.7]} 20... Qe6 {[%clk 0:01:04.3]} 21. Bxg6 {[%clk 0:00:44.5]}
21... Qxg6 {[%clk 0:00:59.2]} 22. Bxe7 {[%clk 0:00:37.8]} 22... Nxe7 {[%clk
0:00:58.3]} 23. Qe2 {[%clk 0:00:18.9]} 23... Rae8 {[%clk 0:00:50.1]} 24. Kh1
{[%clk 0:00:18]} 24... Nd5 {[%clk 0:00:46.5]} 25. Rg1 {[%clk 0:00:15.6]} 25...
Qh6 {[%clk 0:00:38.5]} 26. h4 {[%clk 0:00:11.3]} 26... e3 {[%clk 0:00:27.3]} 27.
f4 {[%clk 0:00:09.2]} 27... b5 {[%clk 0:00:17.2]} 28. Ne5 {[%clk 0:00:07.6]}
28... Bxe5 {[%clk 0:00:16.6]} 29. dxe5 {[%clk 0:00:08.5]} 29... Qe6 {[%clk
0:00:14.9]} 30. Nf3 {[%clk 0:00:08.5]} 30... Rd8 {[%clk 0:00:14.2]} 31. Rad1
{[%clk 0:00:07.7]} 31... Nb6 {[%clk 0:00:13.9]} 32. Nd4 {[%clk 0:00:07.8]} 32...
Qd5+ {[%clk 0:00:13.3]} 33. Kh2 {[%clk 0:00:07.6]} 33... a6 {[%clk 0:00:12.4]}
34. a3 {[%clk 0:00:05.6]} 34... Qe4 {[%clk 0:00:11.7]} 35. Rge1 {[%clk
0:00:04.8]} 35... c5 {[%clk 0:00:11.5]} 36. Nc2 {[%clk 0:00:03]} 36... Nc4
{[%clk 0:00:09.8]} 37. b3 {[%clk 0:00:02.4]} 37... Nd2 {[%clk 0:00:09.3]} 38.
Qxe3 {[%clk 0:00:02.2]} 38... Nf3+ {[%clk 0:00:08.8]} 39. Kh3 {[%clk 0:00:02.7]}
39... Nxe1 {[%clk 0:00:09]} 40. Rxe1 {[%clk 0:00:02.2]} 40... Qxc2 {[%clk
0:00:08.4]} 41. e6 {[%clk 0:00:02.9]} 41... Rfe8 {[%clk 0:00:07.9]} 42. e7
{[%clk 0:00:03.4]} 42... Rd2 {[%clk 0:00:07.5]} 43. Qe6+ {[%clk 0:00:04.3]}
43... Kh8 {[%clk 0:00:07.7]} 0-1

[Event "*** Titled Tuesday Blitz"]
[Site "Chess.com"]
[Date "2020.12.29"]
[Round "5"]
[White "NoGalloNoParty"]
[Black "esteban062000"]
[Result "1-0"]
[WhiteElo "2372"]
[BlackElo "2197"]
[TimeControl "180+1"]
[EndTime "10:55:11 PST"]
[Termination "NoGalloNoParty won by resignation"]

1. d4 {[%clk 0:02:59.9]} 1... Nf6 {[%clk 0:02:56.9]} 2. Nf3 {[%clk 0:03:00]}
2... e6 {[%clk 0:02:53.8]} 3. c4 {[%clk 0:02:59.1]} 3... Bb4+ {[%clk 0:02:52.8]}
4. Bd2 {[%clk 0:02:58.3]} 4... Qe7 {[%clk 0:02:53]} 5. g3 {[%clk 0:02:58]} 5...
b6 {[%clk 0:02:47.8]} 6. Bg2 {[%clk 0:02:58]} 6... Bb7 {[%clk 0:02:47.9]} 7. O-O
{[%clk 0:02:57.6]} 7... Bxd2 {[%clk 0:02:45.1]} 8. Qxd2 {[%clk 0:02:54.9]} 8...
Ne4 {[%clk 0:02:43.3]} 9. Qc2 {[%clk 0:02:54.5]} 9... f5 {[%clk 0:02:42.7]} 10.
e3 {[%clk 0:02:49.1]} 10... O-O {[%clk 0:02:41]} 11. Nc3 {[%clk 0:02:46.8]}
11... d6 {[%clk 0:02:40.9]} 12. b4 {[%clk 0:02:39.5]} 12... Nd7 {[%clk
0:02:39.7]} 13. Rfd1 {[%clk 0:02:29.4]} 13... Ndf6 {[%clk 0:02:28.4]} 14. Ne2
{[%clk 0:02:21.8]} 14... Rac8 {[%clk 0:02:16.3]} 15. Rac1 {[%clk 0:01:29.7]}
15... Ng4 {[%clk 0:01:48.9]} 16. Rf1 {[%clk 0:01:23.4]} 16... c5 {[%clk
0:01:36.9]} 17. h3 {[%clk 0:01:18.8]} 17... Ngf6 {[%clk 0:01:22.9]} 18. a3
{[%clk 0:01:04.6]} 18... cxb4 {[%clk 0:01:15.5]} 19. axb4 {[%clk 0:01:04.3]}
19... Rc7 {[%clk 0:00:55]} 20. Qa4 {[%clk 0:00:57.7]} 20... Bc6 {[%clk
0:00:50.4]} 21. b5 {[%clk 0:00:55.9]} 21... Ba8 {[%clk 0:00:50.2]} 22. Nf4
{[%clk 0:00:51.6]} 22... g5 {[%clk 0:00:44.2]} 23. Nd3 {[%clk 0:00:50.6]} 23...
g4 {[%clk 0:00:41.6]} 24. Nh4 {[%clk 0:00:37.9]} 24... Nd2 {[%clk 0:00:29.7]}
25. Rfd1 {[%clk 0:00:34.5]} 25... Bxg2 {[%clk 0:00:27.5]} 26. Nxg2 {[%clk
0:00:28.4]} 26... Nf3+ {[%clk 0:00:21.8]} 27. Kh1 {[%clk 0:00:28.2]} 27... gxh3
{[%clk 0:00:18.7]} 28. Ngf4 {[%clk 0:00:28.2]} 28... Ne4 {[%clk 0:00:17.2]} 29.
Qc2 {[%clk 0:00:25.6]} 29... e5 {[%clk 0:00:17.3]} 30. dxe5 {[%clk 0:00:24]}
30... dxe5 {[%clk 0:00:18.2]} 31. Nxh3 {[%clk 0:00:23.6]} 31... Qg7 {[%clk
0:00:17]} 32. Ng1 {[%clk 0:00:19.4]} 32... Qh6+ {[%clk 0:00:16.8]} 33. Kg2
{[%clk 0:00:18.2]} 33... Qh2+ {[%clk 0:00:16.9]} 34. Kxf3 {[%clk 0:00:18]} 34...
Ng5+ {[%clk 0:00:15.5]} 35. Ke2 {[%clk 0:00:17.4]} 35... e4 {[%clk 0:00:15.7]}
36. Nf4 {[%clk 0:00:16.6]} 36... Nf3 {[%clk 0:00:10.7]} 37. Nxf3 {[%clk
0:00:15.9]} 37... exf3+ {[%clk 0:00:11.6]} 38. Kxf3 {[%clk 0:00:15.8]} 38... Qh6
{[%clk 0:00:11.6]} 39. Kg2 {[%clk 0:00:15.6]} 39... Qg5 {[%clk 0:00:06.6]} 40.
Qd3 {[%clk 0:00:14.9]} 40... Rg7 {[%clk 0:00:06.6]} 41. Qd5+ {[%clk 0:00:14.5]}
41... Kh8 {[%clk 0:00:07.1]} 42. Ne6 {[%clk 0:00:14.2]} 42... Qh5 {[%clk
0:00:05]} 43. Nxg7 {[%clk 0:00:13.8]} 43... Kxg7 {[%clk 0:00:05.3]} 44. Qe5+
{[%clk 0:00:13.8]} 44... Rf6 {[%clk 0:00:05.5]} 45. Rd7+ {[%clk 0:00:13.1]}
45... Kg6 {[%clk 0:00:06.1]} 46. Rh1 {[%clk 0:00:12.1]} 46... Qg5 {[%clk
0:00:06.3]} 47. Rdxh7 {[%clk 0:00:11]} 1-0

[Event "*** Titled Tuesday Blitz"]
[Site "Chess.com"]
[Date "2020.12.29"]
[Round "5"]
[White "leejunhyeok"]
[Black "Alomaterapia"]
[Result "0-1"]
[WhiteElo "2703"]
[BlackElo "2509"]
[TimeControl "180+1"]
[EndTime "10:55:13 PST"]
[Termination "Alomaterapia won by resignation"]

1. e4 {[%clk 0:03:00.9]} 1... e5 {[%clk 0:02:59.8]} 2. Nf3 {[%clk 0:03:00.6]}
2... Nc6 {[%clk 0:03:00.5]} 3. Bc4 {[%clk 0:03:00.4]} 3... Nf6 {[%clk
0:02:50.6]} 4. d3 {[%clk 0:02:58.9]} 4... h6 {[%clk 0:02:49.3]} 5. O-O {[%clk
0:02:57.9]} 5... d6 {[%clk 0:02:48.6]} 6. c3 {[%clk 0:02:57.9]} 6... g5 {[%clk
0:02:45.6]} 7. Nbd2 {[%clk 0:02:50.9]} 7... Bg7 {[%clk 0:02:38.3]} 8. Re1 {[%clk
0:02:44.6]} 8... g4 {[%clk 0:02:38]} 9. Nh4 {[%clk 0:02:40.3]} 9... Nxe4 {[%clk
0:02:34.4]} 10. dxe4 {[%clk 0:02:31.4]} 10... Qxh4 {[%clk 0:02:32.8]} 11. Nf1
{[%clk 0:02:31.9]} 11... Be6 {[%clk 0:02:27.4]} 12. Qb3 {[%clk 0:02:17.1]} 12...
Nd8 {[%clk 0:01:55.7]} 13. Ng3 {[%clk 0:02:08.5]} 13... h5 {[%clk 0:01:56]} 14.
Qa4+ {[%clk 0:01:45.3]} 14... Bd7 {[%clk 0:01:41.2]} 15. Bb5 {[%clk 0:01:24.9]}
15... c6 {[%clk 0:01:41]} 16. Bf1 {[%clk 0:01:19.6]} 16... Qf6 {[%clk
0:01:40.6]} 17. Qa3 {[%clk 0:01:04]} 17... h4 {[%clk 0:01:39.8]} 18. Nf5 {[%clk
0:01:04.4]} 18... Bf8 {[%clk 0:01:28.8]} 19. Ne3 {[%clk 0:00:55.8]} 19... g3
{[%clk 0:01:20.1]} 20. f3 {[%clk 0:00:47.5]} 20... gxh2+ {[%clk 0:01:14.5]} 21.
Kh1 {[%clk 0:00:47.8]} 21... h3 {[%clk 0:01:11.1]} 22. Bd2 {[%clk 0:00:45.8]}
22... Ne6 {[%clk 0:01:06.6]} 23. Qb3 {[%clk 0:00:43.6]} 23... O-O-O {[%clk
0:01:03.2]} 24. Nf5 {[%clk 0:00:34.5]} 24... hxg2+ {[%clk 0:00:55.6]} 25. Bxg2
{[%clk 0:00:34.6]} 25... Ng5 {[%clk 0:00:29.1]} 26. Qa4 {[%clk 0:00:19.2]} 26...
Nh3 {[%clk 0:00:20.4]} 27. Qxa7 {[%clk 0:00:14.8]} 27... Bxf5 {[%clk 0:00:19]}
28. exf5 {[%clk 0:00:13.9]} 28... Qxf5 {[%clk 0:00:18.6]} 29. Be3 {[%clk
0:00:12.8]} 29... c5 {[%clk 0:00:18.7]} 30. Qa8+ {[%clk 0:00:12.1]} 30... Kc7
{[%clk 0:00:17.9]} 31. Qa5+ {[%clk 0:00:12.4]} 31... Kc8 {[%clk 0:00:16.4]} 32.
Qa8+ {[%clk 0:00:12.4]} 32... Kc7 {[%clk 0:00:16.1]} 33. Qa5+ {[%clk 0:00:12.5]}
33... Kd7 {[%clk 0:00:14.9]} 34. Qb5+ {[%clk 0:00:12.3]} 34... Ke6 {[%clk
0:00:14.6]} 35. Qxb7 {[%clk 0:00:07.8]} 35... Bh6 {[%clk 0:00:13.6]} 36. Qe4
{[%clk 0:00:02.6]} 36... Bxe3 {[%clk 0:00:12.4]} 37. Qxe3 {[%clk 0:00:01.9]}
37... Nf4 {[%clk 0:00:11.2]} 38. Rad1 {[%clk 0:00:01.5]} 38... Nxg2 {[%clk
0:00:10.1]} 39. Kxg2 {[%clk 0:00:02.1]} 39... h1=Q+ {[%clk 0:00:09.3]} 40. Rxh1
{[%clk 0:00:01.7]} 40... Rdg8+ {[%clk 0:00:09.7]} 41. Kf2 {[%clk 0:00:02.3]}
41... Qg6 {[%clk 0:00:08.2]} 42. Ke2 {[%clk 0:00:02.4]} 42... Qg2+ {[%clk
0:00:07.9]} 43. Qf2 {[%clk 0:00:02.9]} 43... Rxh1 {[%clk 0:00:07.7]} 44. Rxh1
{[%clk 0:00:03.2]} 44... Qxh1 {[%clk 0:00:08]} 45. f4 {[%clk 0:00:03.7]} 45...
Rg2 {[%clk 0:00:07.5]} 46. f5+ {[%clk 0:00:04.6]} 46... Kf6 {[%clk 0:00:07.2]}
0-1

[Event "*** Titled Tuesday Blitz"]
[Site "Chess.com"]
[Date "2020.12.29"]
[Round "5"]
[White "anon102030"]
[Black "andriipalchuk"]
[Result "0-1"]
[WhiteElo "2696"]
[BlackElo "2502"]
[TimeControl "180+1"]
[EndTime "10:55:13 PST"]
[Termination "andriipalchuk won on time"]

1. e4 {[%clk 0:03:00.9]} 1... c6 {[%clk 0:02:59.1]} 2. d3 {[%clk 0:03:00.5]}
2... d5 {[%clk 0:02:59.8]} 3. Nd2 {[%clk 0:03:00.3]} 3... e5 {[%clk 0:03:00.2]}
4. g3 {[%clk 0:02:59.5]} 4... Bd6 {[%clk 0:03:00.4]} 5. Bg2 {[%clk 0:03:00.1]}
5... Nf6 {[%clk 0:03:00.7]} 6. Ngf3 {[%clk 0:03:00.2]} 6... O-O {[%clk
0:03:00.4]} 7. O-O {[%clk 0:03:00.7]} 7... Re8 {[%clk 0:03:00.6]} 8. b3 {[%clk
0:03:00.7]} 8... Nbd7 {[%clk 0:03:01]} 9. Bb2 {[%clk 0:03:00.8]} 9... a5 {[%clk
0:03:01.7]} 10. a4 {[%clk 0:03:00.5]} 10... Nf8 {[%clk 0:02:57.1]} 11. Re1
{[%clk 0:02:51.2]} 11... Ng6 {[%clk 0:02:56.7]} 12. h3 {[%clk 0:02:49.9]} 12...
Bd7 {[%clk 0:02:48.4]} 13. d4 {[%clk 0:02:26.7]} 13... exd4 {[%clk 0:02:44.8]}
14. Nxd4 {[%clk 0:02:23.4]} 14... dxe4 {[%clk 0:02:42.7]} 15. Nxe4 {[%clk
0:02:12.2]} 15... Nxe4 {[%clk 0:02:42.7]} 16. Bxe4 {[%clk 0:02:12.6]} 16... Bxh3
{[%clk 0:02:42.9]} 17. Qh5 {[%clk 0:01:48.3]} 17... Qd7 {[%clk 0:02:26.3]} 18.
Bf5 {[%clk 0:01:24.5]} 18... Bxf5 {[%clk 0:02:25]} 19. Nxf5 {[%clk 0:01:25.4]}
19... Bf8 {[%clk 0:02:25.2]} 20. Rxe8 {[%clk 0:01:11.3]} 20... Rxe8 {[%clk
0:02:23.2]} 21. Rd1 {[%clk 0:01:12.2]} 21... Qc7 {[%clk 0:02:23.1]} 22. Qg5
{[%clk 0:00:55.8]} 22... f6 {[%clk 0:02:19.4]} 23. Qg4 {[%clk 0:00:53.1]} 23...
Rd8 {[%clk 0:02:11.9]} 24. Rxd8 {[%clk 0:00:37.1]} 24... Qxd8 {[%clk 0:02:11.6]}
25. Qc4+ {[%clk 0:00:38]} 25... Qd5 {[%clk 0:02:01.3]} 26. Qxd5+ {[%clk
0:00:38]} 26... cxd5 {[%clk 0:02:02.2]} 27. Ne3 {[%clk 0:00:38.8]} 27... Ne7
{[%clk 0:01:56.6]} 28. Bc3 {[%clk 0:00:36.2]} 28... d4 {[%clk 0:01:40.2]} 29.
Bxd4 {[%clk 0:00:34.9]} 29... Nc6 {[%clk 0:01:40.8]} 30. Bb6 {[%clk 0:00:30]}
30... Kf7 {[%clk 0:01:40.2]} 31. c3 {[%clk 0:00:27.9]} 31... Ke6 {[%clk
0:01:19.6]} 32. Kf1 {[%clk 0:00:28]} 32... Bd6 {[%clk 0:01:07.3]} 33. Nc4 {[%clk
0:00:23.7]} 33... Be5 {[%clk 0:01:07.1]} 34. Bxa5 {[%clk 0:00:20.6]} 34... Kd5
{[%clk 0:00:56.5]} 35. f4 {[%clk 0:00:18.9]} 35... Nxa5 {[%clk 0:00:48.2]} 36.
Nxa5 {[%clk 0:00:18.5]} 36... Bxc3 {[%clk 0:00:47.9]} 37. Nxb7 {[%clk
0:00:19.1]} 37... Kc6 {[%clk 0:00:48]} 38. Nd8+ {[%clk 0:00:17.5]} 38... Kd7
{[%clk 0:00:47.8]} 39. Nf7 {[%clk 0:00:17.2]} 39... Ke7 {[%clk 0:00:42]} 40. Nh8
{[%clk 0:00:15.4]} 40... f5 {[%clk 0:00:41.7]} 41. Ke2 {[%clk 0:00:11.7]} 41...
g6 {[%clk 0:00:42.3]} 42. Nxg6+ {[%clk 0:00:10.3]} 42... hxg6 {[%clk 0:00:43.2]}
43. Kd3 {[%clk 0:00:10.8]} 43... Be1 {[%clk 0:00:43.7]} 44. Ke3 {[%clk 0:00:06]}
44... Bxg3 {[%clk 0:00:44.1]} 45. b4 {[%clk 0:00:05.6]} 45... Be1 {[%clk
0:00:43.8]} 46. b5 {[%clk 0:00:05.4]} 46... Kd6 {[%clk 0:00:41.4]} 47. Kd4
{[%clk 0:00:04.5]} 47... Bg3 {[%clk 0:00:39.4]} 48. Ke3 {[%clk 0:00:04.4]} 48...
Be1 {[%clk 0:00:39]} 49. Ke2 {[%clk 0:00:03.4]} 49... Ba5 {[%clk 0:00:37.8]} 50.
Kd3 {[%clk 0:00:03.4]} 50... Kd5 {[%clk 0:00:38.4]} 51. Ke3 {[%clk 0:00:03.1]}
51... Bb6+ {[%clk 0:00:38]} 52. Kd3 {[%clk 0:00:03.4]} 52... Bc7 {[%clk
0:00:38.4]} 53. Kc3 {[%clk 0:00:03]} 53... Bxf4 {[%clk 0:00:37.7]} 54. a5 {[%clk
0:00:03.3]} 54... Kc5 {[%clk 0:00:37.4]} 55. b6 {[%clk 0:00:02.8]} 55... Kb5
{[%clk 0:00:38]} 56. Kd4 {[%clk 0:00:01.4]} 56... Kxa5 {[%clk 0:00:38]} 57. b7
{[%clk 0:00:02.3]} 57... Kb6 {[%clk 0:00:38]} 58. b8=Q+ {[%clk 0:00:01.7]} 58...
Bxb8 {[%clk 0:00:37.9]} 0-1

[Event "*** Titled Tuesday Blitz"]
[Site "Chess.com"]
[Date "2020.12.29"]
[Round "5"]
[White "Lion-Al-Messi"]
[Black "Rozum_Ivan"]
[Result "0-1"]
[WhiteElo "2542"]
[BlackElo "2744"]
[TimeControl "180+1"]
[EndTime "10:55:17 PST"]
[Termination "Rozum_Ivan won by resignation"]

1. d4 {[%clk 0:03:00.9]} 1... Nf6 {[%clk 0:02:59.6]} 2. Nf3 {[%clk 0:03:01.1]}
2... e6 {[%clk 0:02:59.8]} 3. Nc3 {[%clk 0:03:01.5]} 3... d5 {[%clk 0:02:59.9]}
4. Bg5 {[%clk 0:03:02]} 4... Bb4 {[%clk 0:02:58.9]} 5. e3 {[%clk 0:03:02.4]}
5... Nbd7 {[%clk 0:02:56.9]} 6. Bd3 {[%clk 0:03:01.9]} 6... h6 {[%clk
0:02:56.5]} 7. Bh4 {[%clk 0:03:01.7]} 7... c5 {[%clk 0:02:56.8]} 8. dxc5 {[%clk
0:03:01.4]} 8... Qa5 {[%clk 0:02:53.3]} 9. O-O {[%clk 0:03:01.1]} 9... Bxc3
{[%clk 0:02:48.9]} 10. bxc3 {[%clk 0:03:02]} 10... Qxc3 {[%clk 0:02:49]} 11. Rb1
{[%clk 0:02:59.1]} 11... Nxc5 {[%clk 0:02:46.5]} 12. Bxf6 {[%clk 0:02:52.8]}
12... Qxf6 {[%clk 0:02:45.5]} 13. Bb5+ {[%clk 0:02:53.1]} 13... Nd7 {[%clk
0:02:44.7]} 14. Bxd7+ {[%clk 0:02:52.6]} 14... Kxd7 {[%clk 0:02:30.2]} 15. c4
{[%clk 0:02:52.4]} 15... Rd8 {[%clk 0:02:30.1]} 16. Qa4+ {[%clk 0:02:38.7]}
16... Ke7 {[%clk 0:02:29.7]} 17. Rfd1 {[%clk 0:02:38.7]} 17... Kf8 {[%clk
0:02:20.2]} 18. cxd5 {[%clk 0:02:37.7]} 18... exd5 {[%clk 0:02:13.1]} 19. Rd4
{[%clk 0:02:37.2]} 19... Qc6 {[%clk 0:02:01.5]} 20. Qb4+ {[%clk 0:02:36.1]}
20... Qd6 {[%clk 0:01:51.8]} 21. Qd2 {[%clk 0:02:27.3]} 21... b6 {[%clk
0:01:47.4]} 22. e4 {[%clk 0:02:25.6]} 22... Be6 {[%clk 0:01:35.1]} 23. exd5
{[%clk 0:02:25.5]} 23... Bf5 {[%clk 0:01:26.4]} 24. Rd1 {[%clk 0:02:25.6]} 24...
Rac8 {[%clk 0:01:25.3]} 25. h3 {[%clk 0:02:25.9]} 25... Rc2 {[%clk 0:01:23.7]}
26. Qe3 {[%clk 0:02:26.1]} 26... Re8 {[%clk 0:01:20.5]} 27. Qf4 {[%clk
0:02:25.4]} 27... Qxf4 {[%clk 0:01:19.1]} 28. Rxf4 {[%clk 0:02:26.3]} 28... Bd7
{[%clk 0:01:07.2]} 29. Nd4 {[%clk 0:02:26.4]} 29... Rxa2 {[%clk 0:01:04.3]} 30.
Rc1 {[%clk 0:02:20]} 30... Rc8 {[%clk 0:01:02.4]} 31. Re1 {[%clk 0:01:58.6]}
31... Ra4 {[%clk 0:00:47.6]} 32. d6 {[%clk 0:01:36.1]} 32... Re8 {[%clk
0:00:36.5]} 33. Rc1 {[%clk 0:01:31.3]} 33... g5 {[%clk 0:00:34.1]} 34. Rf6
{[%clk 0:01:09.4]} 34... Rxd4 {[%clk 0:00:33.3]} 35. Rc7 {[%clk 0:01:09.5]}
35... Kg7 {[%clk 0:00:29.9]} 36. Rf3 {[%clk 0:01:09.4]} 36... Rxd6 {[%clk
0:00:28.3]} 37. Rxa7 {[%clk 0:01:06.5]} 37... b5 {[%clk 0:00:28.2]} 38. Rb7
{[%clk 0:01:06.4]} 38... Re4 {[%clk 0:00:23.5]} 39. Rb3 {[%clk 0:01:04.4]} 39...
Bc6 {[%clk 0:00:14.7]} 40. Rb6 {[%clk 0:01:03.2]} 40... Rde6 {[%clk 0:00:15]}
41. Kh2 {[%clk 0:01:02.1]} 41... Rf4 {[%clk 0:00:14.7]} 42. f3 {[%clk
0:01:00.7]} 42... Rc4 {[%clk 0:00:14.5]} 43. Rb2 {[%clk 0:00:57.7]} 43... h5
{[%clk 0:00:14.9]} 44. Kg3 {[%clk 0:00:52.8]} 44... Rg6 {[%clk 0:00:15]} 45. Kf2
{[%clk 0:00:49.4]} 45... g4 {[%clk 0:00:15.1]} 46. hxg4 {[%clk 0:00:50.3]} 46...
hxg4 {[%clk 0:00:15.9]} 47. fxg4 {[%clk 0:00:50.1]} 47... Rcxg4 {[%clk
0:00:16.1]} 48. Ke3 {[%clk 0:00:48]} 48... Rxg2 {[%clk 0:00:14.9]} 49. Rxg2
{[%clk 0:00:48]} 49... Bxg2 {[%clk 0:00:15.8]} 50. Rxb5 {[%clk 0:00:48.5]} 50...
Bc6 {[%clk 0:00:15.8]} 51. Rb6 {[%clk 0:00:48.2]} 51... Bd7 {[%clk 0:00:15.7]}
52. Rb7 {[%clk 0:00:46.7]} 52... Be6 {[%clk 0:00:16.1]} 53. Rb6 {[%clk
0:00:46.9]} 53... Kf6 {[%clk 0:00:16.7]} 54. Kf4 {[%clk 0:00:46.6]} 54... Rg4+
{[%clk 0:00:16.7]} 55. Kf3 {[%clk 0:00:47]} 55... Rc4 {[%clk 0:00:17.6]} 56. Rb5
{[%clk 0:00:45]} 56... Rd4 {[%clk 0:00:16.5]} 57. Rb6 {[%clk 0:00:44]} 57... Ke5
{[%clk 0:00:16.3]} 58. Rb5+ {[%clk 0:00:44]} 58... Bd5+ {[%clk 0:00:16.4]} 59.
Ke3 {[%clk 0:00:44.3]} 59... Re4+ {[%clk 0:00:16.7]} 60. Kf2 {[%clk 0:00:43.6]}
60... f5 {[%clk 0:00:16]} 61. Rb8 {[%clk 0:00:43.5]} 61... Ra4 {[%clk
0:00:15.8]} 62. Re8+ {[%clk 0:00:43.7]} 62... Kf4 {[%clk 0:00:16.1]} 63. Re2
{[%clk 0:00:44.1]} 63... Ra2 {[%clk 0:00:15.8]} 64. Rxa2 {[%clk 0:00:41.3]}
64... Bxa2 {[%clk 0:00:16.7]} 0-1